Cogmind - Beta 17 @@@ ROGUE MODE // 2026.07.13 @ 16:01:24 Player: Scuttle Result: Destroyed by P-80 Master with Gamma Rifle Performance ------------- Evolutions (3) 1500 Regions Visited (4) 800 Robots Destroyed (110) 550 Value Destroyed (3018) 3018 Prototype IDs (9) 180 Alien Tech Used (0) 0 Bonus (7570) 7570 TOTAL SCORE: 13618 Bonus ------- High Alert Combat Kills 30 Follower Combat Kills 40 Prayed to X0-1V1 5000 Major X0-1V1 Interference 2500 Cogmind --------- Core Integrity 0/450 Matter 216/300 Energy 50/100 System Corruption 18% Temperature Cool (0) Movement Core (50) Location -7/Factory Parts ------- > --- POWER (2) -------- (None) > --- PROPULSION (6) --- (None) > --- UTILITY (3) ------ Hacking Suite > --- WEAPON (2) ------- Power Maul > --- INVENTORY (5) ---- Cooled Airjet Microactuators Hardened Light Armor Plating Hacking Suite Peak State ------------ > --- POWER ------------ Light Nuclear Core Light Nuclear Core > --- PROPULSION ------- Light Treads Armored Treads Compact Wheel Armored Huge Wheel Cooled Airjet > --- UTILITY ---------- Large Storage Unit Hacking Suite X0-1V1's Piety Tracker > --- WEAPON ----------- Improved Assault Rifle Power Maul > --- INVENTORY -------- Cooled Ion Engine Compact Wheel Improved Hover Unit Improved Hover Unit Improved Hover Unit Improved Hover Unit Improved Hover Unit Improved Melee Analysis Suite Microactuators Hardened Light Armor Plating Hacking Suite Hacking Suite Improved Trap Extractor Mini Grenade Launcher Improved Datajack [Rating: 51] Favorites ----------- Power Ion Engine Engine Ion Engine Power Core Light Nuclear Core Propulsion Light Treads Treads Light Treads Wheel Compact Wheel Hover Unit Improved Hover Unit Flight Unit Improved Flight Unit Utility X0-1V1's Piety Tracker Device X0-1V1's Piety Tracker Storage Large Storage Unit Processor Advanced Targeting Computer Hackware Hacking Suite Weapon Improved Assault Rifle Energy Gun Small Laser Energy Cannon Particle Cannon Ballistic Gun Improved Assault Rifle Ballistic Cannon Gauss Cannon Launcher Mini Grenade Launcher Impact Weapon Power Maul Build | -11 -10 -9 -8 -7 ------- Run | Yrd Mat Mat Mat Fac Slots Evolved 6 | . . 2 2 2 Power . | . . . . . Propulsion 3 | . . 1 . 2 Utility 2 | . . 1 1 . Weapon 1 | . . . 1 . Parts Attached 74 | 7 21 17 11 18 Power 11 | 1 3 2 3 2 Engine 9 | 1 3 2 2 1 Core 2 | . . . 1 1 Reactor . | . . . . . Propulsion 31 | 3 8 7 3 10 Treads 14 | 1 7 4 2 . Leg . | . . . . . Wheel 12 | 2 1 2 1 6 Hover 4 | . . . . 4 Flight 1 | . . 1 . . Utility 16 | 1 5 4 4 2 Device 10 | 1 4 2 2 1 Storage 3 | . 1 2 . . Processor 2 | . . . 2 . Hackware 1 | . . . . 1 Protection . | . . . . . Artifact . | . . . . . Weapon 16 | 2 5 4 1 4 Energy Gun 7 | 1 4 1 . 1 Energy Cannon 2 | . 1 1 . . Ballistic Gun 4 | 1 . 1 1 1 Ballistic Cannon 1 | . . 1 . . Launcher 1 | . . . . 1 Special Weapon . | . . . . . Impact Weapon 1 | . . . . 1 Slashing Weapon . | . . . . . Piercing Weapon . | . . . . . Special Melee Weapon . | . . . . . Unidentified Prototypes 7 | . 1 4 . 2 Parts Lost 25 | . 2 1 3 19 Power 4 | . . . . 4 Propulsion 12 | . . . 2 10 Utility 3 | . . 1 1 1 Weapon 6 | . 2 . . 4 Highest Loss Streak 8 | . 2 1 1 8 To Critical Strikes . | . . . . . Average Backups 10 | 2 6 11 13 14 Power . | . . 1 1 . Propulsion 4 | 1 3 3 5 5 Utility 3 | . 1 4 4 5 Weapon 1 | . . 2 2 1 Tool/Special . | . . . . . Unused Backups 21 | . . 6 3 12 Power 1 | . . 1 . . Propulsion 3 | . . 1 . 2 Utility 10 | . . 1 1 8 Weapon 6 | . . 3 2 1 Tool/Special 1 | . . . . 1 Average Slot Usage (%) 92 | . 97 97 91 82 Engine 10 | . 14 11 12 3 Core 2 | . . . 2 8 Treads 20 | . 25 22 15 12 Wheel 7 | . 2 10 7 14 Device 15 | . 13 21 18 10 Storage 10 | . 12 11 9 6 Processor 1 | . . . 8 2 Hackware 1 | . . . . 4 Energy Gun 8 | . 20 2 . . Energy Cannon 6 | . 6 18 . . Ballistic Gun 5 | . . . 17 11 Peak Build Rating 51 | 6 21 32 38 51 Average Rating 25 | 4 9 29 35 42 On Entrance 19 | . 6 21 32 38 Avg Prop Armor Cover (%) 16 | 17 15 19 15 15 Naked Turns . | . . . . . Heaviest Build 41 | 6 21 38 41 40 Greatest Support 60 | 20 40 46 46 60 Greatest Overweight (x) 2 | . 1 2 2 2 Average Overweight (x) . | . . 1 1 . Largest Inventory Capacity 15 | 5 10 15 15 15 Average Capacity 12 | 5 9 12 15 14 Most Carried 15 | 3 10 15 15 15 Average Carried 10 | 2 6 11 13 14 Final Capacity 15 | 5 10 15 15 5 Final Carried 15 | 3 10 15 14 4 Class Distribution -------------------- 77% | Mutant 22% | Scavenger-Mutant Dominant Class ---------------- Mutant | -10/Materials Mutant | -9/Materials Scavenger-Mutant | -8/Materials Scavenger-Mutant | -7/Factory Resources | -11 -10 -9 -8 -7 ----------- Run | Yrd Mat Mat Mat Fac Matter Collected 1586 | 282 227 274 437 366 Remotely . | . . . . . Salvage Created 4217 | 107 864 1085 1129 1032 Parts 211 | 6 46 60 55 44 Haulers Intercepted 8 | . 2 3 2 1 Recyclers Shooed 9 | . 4 1 1 3 Parts Field Recycled . | . . . . . Retrieved Matter . | . . . . . Parts Self-Destructed . | . . . . . Prevented . | . . . . . Parts Restored . | . . . . . Kills | -11 -10 -9 -8 -7 ------- Run | Yrd Mat Mat Mat Fac Combat Hostiles Destroyed 75 | . 21 15 16 23 Melee 3 | . . . . 3 Guns 39 | . 20 . 14 5 Cannons 15 | . . 14 . 1 AOE 10 | . . . 2 8 Classes Destroyed 13 | 2 5 3 1 2 Worker 7 | . 1 . 1 5 Builder 2 | . 1 1 . . Tunneler 2 | 1 . . . 1 Hauler 8 | . 2 3 2 1 Recycler 10 | 1 . 3 3 3 Mechanic 1 | . . . . 1 Operator 4 | . . 3 1 . Watcher 1 | . . . 1 . Swarmer 21 | . 6 . . 15 Grunt 44 | . 15 11 12 6 Duelist 1 | . . 1 . . Sentry 8 | . . 3 4 1 Programmer 1 | . . . . 1 Best Kill Streak 7 | 1 3 4 5 7 Combat Bots Only 5 | . 3 3 3 5 Max Kills in Single Turn 4 | 1 1 1 2 4 Gunslinging . | . . . . . Exploded 3 | . . . 2 3 Melee 1 | . . . . 1 Uniques/NPCs Destroyed . | . . . . . Combat | -11 -10 -9 -8 -7 -------- Run | Yrd Mat Mat Mat Fac Hostile Shots Fired 494 | . 132 44 56 262 Missed 162 | . 38 10 17 97 Hits 332 | . 94 34 39 165 Melee 2 | . . 2 . . Projectile 330 | . 94 32 39 165 Critical Strikes 15 | . 1 2 1 11 Damage Taken 4657 | . 1047 481 630 2499 Core 1182 | . 236 125 100 721 Absorbed by Shields . | . . . . . Core Remaining (%) 65 | 100 2 76 83 . Volleys Fired 271 | 12 102 59 57 41 Largest 2 | 2 2 2 2 2 Hottest 136 | 60 108 136 46 46 Shots Fired 490 | 24 171 108 114 73 Gun 391 | 24 167 18 114 68 Cannon 94 | . 4 90 . . Launcher 5 | . . . . 5 Special . | . . . . . Kinetic 199 | 12 1 4 114 68 Thermal 286 | 12 170 104 . . Explosive 5 | . . . . 5 Electromagnetic . | . . . . . Robot Hit Streak 35 | 5 22 20 35 14 Robot Miss Streak 5 | 2 3 5 2 3 Penetration Max . | . . . . . Secondary Targets 4 | . 1 . 2 1 Max Gunslinging Chain 1 | . 1 . 1 1 Shots Hit Robots 384 | 15 123 70 94 82 Core Hits 166 | 4 46 29 50 37 Critical Kills 2 | . . 1 . 1 Critical Parts Destroyed 8 | . . . 1 7 Critical Strikes 11 | . . 2 1 8 Meltdown 1 | . . 1 . . Destroy 1 | . . . 1 . Smash 8 | . . . . 8 Sunder 1 | . . 1 . . Melee Attacks 38 | . . . . 38 Impact 38 | . . . . 38 Slashing . | . . . . . Piercing . | . . . . . Sneak Attacks 3 | . . . . 3 Combat Hostiles . | . . . . . Follow-up Attacks . | . . . . . Damage Inflicted 7928 | 146 1318 1553 1811 3100 Guns 3692 | 146 1244 177 1351 774 Cannons 1342 | . 40 1221 . 81 Explosions 1431 | . . 155 460 816 Melee 1429 | . . . . 1429 Ramming 34 | . 34 . . . Kinetic 2343 | 57 . 80 1351 855 Thermal 2811 | 89 1284 1242 . 196 Explosive 1235 | . . 155 460 620 Electromagnetic . | . . . . . Impact 1429 | . . . . 1429 Slashing . | . . . . . Piercing . | . . . . . Entropic 76 | . . 76 . . Highest Corruption 17 | . . . . 17 Average Corruption 8 | . . . . 8 Corruption Purged . | . . . . . Corruption Blocked . | . . . . . Effects 10 | . . . . 10 Message Errors 2 | . . . . 2 Matter Fused 3 | . . . . 3 Heat Flow Errors 1 | . . . . 1 Data Loss (minor) 2 | . . . . 2 Alerts 1 | . . . . 1 Weapon Failures 1 | . . . . 1 Overload Shots . | . . . . . Overflow Damage 820 | . . 45 193 582 Projectiles . | . . . . . Explosions 333 | . . 45 193 95 Melee 487 | . . . . 487 Knockbacks 4 | . . . . 4 Impact 4 | . . . . 4 Kinetic . | . . . . . Secondary . | . . . . . Self-Inflicted Damage 75 | . . . . 75 Shots 4 | . . . . 4 Rammed 7 | . 7 . . . Targets Rammed 7 | . 7 . . . Kicked . | . . . . . Crushed . | . . . . . Highest Temperature 402 | 40 198 402 18 154 Average Temperature 54 | 21 50 64 18 42 Received Heat Transfer 1425 | . 492 246 351 336 Siege Activations . | . . . . . Martial Activations . | . . . . . Shielding Activations . | . . . . . Robots Disrupted . | . . . . . Combat Hostiles . | . . . . . Robots Corrupted 7 | . . . . 7 Combat Hostiles 6 | . . . . 6 Parts Fried 6 | . . . . 6 Impact Corruptions 16 | . . . . 16 Robots Melted 2 | . 1 1 . . Combat Hostiles 2 | . 1 1 . . Parts Melted 7 | . 5 1 . 1 Heat Transferred 6315 | 200 3641 2324 . 150 Parts Sabotaged . | . . . . . Parts Stolen . | . . . . . Parts Stripped . | . . . . . Power Chain Reactions . | . . . . . Alert | -11 -10 -9 -8 -7 ------- Run | Yrd Mat Mat Mat Fac Maximum Alert Level 2 | . 1 . 1 2 Low Security (%) 74 | 100 76 100 76 43 Level 1 24 | . 23 . 23 50 Level 2 1 | . . . . 5 Level 3 . | . . . . . Level 4 . | . . . . . Level 5 . | . . . . . High Security . | . . . . . Max Security . | . . . . . Peak Influence 519 | 5 285 146 267 519 Initial 114 | . . 26 59 114 Average 137 | 1 127 59 160 224 Influence Increases 2564 | 10 597 494 492 971 Destroy 0b10 Robot/C 1520 | . 420 300 320 480 Destroy 0b10 Robot/NC 175 | 10 20 50 40 55 Destroy Leader 298 | . 94 86 76 42 Allied During Kill 4 | . . . . 4 Successful Hack 41 | . 3 10 7 21 Select Force Hacks 30 | . 30 . . . Disable Machine 105 | . . 30 45 30 Destroy Structure 74 | . . 18 4 52 Lose Combat Pursuer 75 | . 30 . . 45 Miscellaneous 242 | . . . . 242 Influence Decreases 2061 | 10 535 416 381 719 Entered New Map 254 | . . 36 81 137 Time Decay 1557 | 10 515 370 270 392 Lost Part 250 | . 20 10 30 190 Squads Dispatched 12 | . 5 2 3 2 Investigation 3 | . 3 . . . Extermination 2 | . . . . 2 Reinforcement 7 | . 2 2 3 . Assault . | . . . . . Garrison . | . . . . . Intercept . | . . . . . Searches Triggered . | . . . . . Construction Impeded . | . . . . . Haulers Reinforced . | . . . . . Active Scanning Responses . | . . . . . Cargo Convoy Interrupts . | . . . . . Stealth | -11 -10 -9 -8 -7 --------- Run | Yrd Mat Mat Mat Fac Distress Signals 5 | . 2 1 1 1 Communications Jammed . | . . . . . Distress Signals . | . . . . . Times Spotted 131 | . 40 23 30 38 Peak Tracking Total 8 | . 5 4 5 8 Tactical Retreats 4 | . 2 . . 2 Traps | -11 -10 -9 -8 -7 ------- Run | Yrd Mat Mat Mat Fac Traps Triggered 2 | . 2 . . . Indirectly . | . . . . . Trap Hack Attempts . | . . . . . Triggered . | . . . . . Disarmed . | . . . . . Reprogrammed . | . . . . . Reused . | . . . . . Traps Extracted . | . . . . . Installed . | . . . . . Triggered . | . . . . . Machines | -11 -10 -9 -8 -7 ---------- Run | Yrd Mat Mat Mat Fac Machines Disabled 7 | . . 2 3 2 Max in Single Turn 2 | . . 1 1 2 Machines Repaired . | . . . . . Machines Dismantled . | . . . . . Machines Sabotaged . | . . . . . Overloaded Fab Kills . | . . . . . Hacking | -11 -10 -9 -8 -7 --------- Run | Yrd Mat Mat Mat Fac Machines Accessed 17 | . 4 7 4 2 Terminals 12 | . 2 5 3 2 Fabricators . | . . . . . Repair Stations 2 | . 1 . 1 . Recycling Units 1 | . 1 . . . Scanalyzers 2 | . . 2 . . Garrison Access . | . . . . . Total Hacks 41 | . 9 16 11 5 Successful 18 | . 5 7 4 2 Failed 23 | . 4 9 7 3 Catastrophic 4 | . . 3 . 1 Database Lockouts . | . . . . . Manual 22 | . 6 8 6 2 Terminals 30 | . 5 12 8 5 Fabricators . | . . . . . Repair Stations 6 | . 3 . 3 . Recycling Units 1 | . 1 . . . Scanalyzers 4 | . . 4 . . Garrison Access . | . . . . . Terminal Hacks 5 | . 2 1 1 1 Robot Analysis 2 | . 1 . . 1 Prototype ID Bank 1 | . . 1 . . Locate Traps 1 | . 1 . . . Registered Components 1 | . . . 1 . Fabricator Hacks . | . . . . . Repair Station Hacks 2 | . 1 . 1 . Scan Component 1 | . . . 1 . Refit 1 | . 1 . . . Recycling Unit Hacks . | . . . . . Scanalyzer 3 | . . 3 . . Retrieve Study 3 | . . 3 . . Garrison Access Hacks . | . . . . . Unauthorized Hacks 8 | . 2 3 2 1 Terminals 7 | . 1 3 2 1 Assimilate 1 | . . 1 . . Botnet 6 | . 1 2 2 1 Fabricators . | . . . . . Repair Stations . | . . . . . Recycling Units 1 | . 1 . . . Tunnel 1 | . 1 . . . Scanalyzers . | . . . . . Garrison Access . | . . . . . Data Cores Recovered 4 | . . 3 1 . Used 1 | . . 1 . . Hacking Detections 14 | . 3 5 4 2 Full Trace Events . | . . . . . Feedback Events . | . . . . . Feedback Blocked . | . . . . . Robot Schematics Acquired . | . . . . . Robots Built . | . . . . . Authchips . | . . . . . Time . | . . . . . Total Robot Build Rating . | . . . . . Part Schematics Acquired . | . . . . . Parts Built . | . . . . . Authchips . | . . . . . Time . | . . . . . Total Part Build Rating . | . . . . . Part Studies Acquired 3 | . . 3 . . Parts Repaired . | . . . . . Time . | . . . . . Parts Recycled . | . . . . . Recycled Matter . | . . . . . Retrieved Matter . | . . . . . Retrieved Components . | . . . . . Parts Scanalyzed . | . . . . . Part Schematics Acquired . | . . . . . Parts Damaged . | . . . . . Bothacking | -11 -10 -9 -8 -7 ------------ Run | Yrd Mat Mat Mat Fac Used RIF Installer . | . . . . . Robots Hacked . | . . . . . Non-combat . | . . . . . Combat . | . . . . . Robot Hacks Applied . | . . . . . Relay Couplers Released . | . . . . . Fabnet Peak Effective % . | . . . . . Robots Rewired . | . . . . . Allies Hacked . | . . . . . Hacks Repelled . | . . . . . Allies | -11 -10 -9 -8 -7 -------- Run | Yrd Mat Mat Mat Fac Total Allies 1 | . . . . 1 Largest Group 1 | . . . . 1 Highest-Rated Group 79 | . . . . 79 Highest-Rated Ally 79 | . . . . 79 Total Orders . | . . . . . Ally Attacks 1 | . . . . 1 Total Damage 59 | . . . . 59 Kills 1 | . . . . 1 Allies Corrupted . | . . . . . Allies Melted . | . . . . . X0-1V1 Amusement Gains 121 | . 11 20 . 90 Good Acts 14 | . . 8 4 2 Bad Acts 16 | . . 2 3 11 Intel | -11 -10 -9 -8 -7 ------- Run | Yrd Mat Mat Mat Fac Active Infowar (turns) 136 | 5 131 . . . Seismic 136 | 5 131 . . . Robot Analysis Total 2 | . 1 . . 1 Derelict Logs Recovered . | . . . . . Drone Launches . | . . . . . Drone Recoveries . | . . . . . Exploration | -11 -10 -9 -8 -7 ------------- Run | Yrd Mat Mat Mat Fac Turns Passed 4149 | 83 1597 915 581 973 Spaces Moved 2197 | 42 637 563 303 652 Core 8 | 1 . . . 7 Treads 565 | 2 465 22 33 43 Legs . | . . . . . Wheels 1596 | 39 172 541 270 574 Hover 28 | . . . . 28 Flight . | . . . . . Fastest Speed 50 | 50 100 105 120 50 Average Speed 120 | 87 144 116 124 101 Slowest Speed 250 | 160 160 240 160 250 Overloaded Moves . | . . . . . Propulsion Burnouts . | . . . . . Robots Hopped . | . . . . . Potential Cave-ins . | . . . . . Cave-ins Triggered . | . . . . . Exploration Rate (%) 41 | 3 97 59 35 14 Regions Visited 4 Branch Regions . Pre-discovered Areas 1 | . 1 . . . Known Exits Taken 1 | . . . 1 . Unknown Exits Taken 3 | 1 1 1 . . Scrap Searched . | . . . . . Spaces Dug . | . . . . . Terrain Destroyed 83 | . . 18 5 60 Melee . | . . . . . Projectile 2 | . . 2 . . AOE 81 | . . 16 5 60 Terrain Rammed . | . . . . . Walls Destroyed . | . . . . . Machines Disabled . | . . . . . Actions | -11 -10 -9 -8 -7 --------- Run | Yrd Mat Mat Mat Fac Total 3131 | 63 1134 724 392 818 Wait 416 | . 335 32 8 41 Move 2193 | 41 636 562 302 652 Hop . | . . . . . Pick Up 47 | 3 12 19 5 8 Fast Attach 24 | 6 2 4 5 7 Attach 18 | . 2 3 2 11 Detach 11 | . 3 3 1 4 Swap 49 | 1 20 17 5 6 Drop 57 | . 15 25 7 10 Fire 271 | 12 102 59 57 41 Melee 38 | . . . . 38 Ram . | . . . . . Kick . | . . . . . Crush 7 | . 7 . . . Escape Stasis . | . . . . . Rewire . | . . . . . Trap . | . . . . . Miscellaneous . | . . . . . Route ------- -11/Scrapyard -10/Materials (discovered 5 exits: *Mat x3 / [*Min] / [*Sub]) -9/Materials (discovered 3 exits: *Mat x2 / [*Min]) -8/Materials (discovered 4 exits: *Fac x2 / [*Sto x2]) -7/Factory (discovered 2 exits: [*Fac] / [*Low]) History --------- Turn | Location | Event 12 | -11/Scrapyard | Discovered new exit (range 16) 84 | -11/Scrapyard | Entered Materials 314 | -10/Materials | Build established: Mutant 472 | -10/Materials | Core integrity fell below 50% 645 | -10/Materials | Discovered new exit (range 9) 699 | -10/Materials | Core integrity fell below 20% 736 | -10/Materials | Discovered new exit (range 6) 1305 | -10/Materials | Discovered new exit (range 8) 1407 | -10/Materials | Discovered new exit (range 16) 1537 | -10/Materials | Discovered new exit (range 8) 1644 | -10/Materials | Made a sacrifice at D.C.S.S. Altar Unit 1681 | -10/Materials | Entered another Materials area 1681 | -9/Materials | Evolved 2 slots: Propulsion x1, Utility x1 1882 | -9/Materials | Sight range permanently improved by X0-1V1 (+1; -150 max core) 1929 | -9/Materials | Discovered new exit (range 9) 2106 | -9/Materials | Discovered new exit (range 17) 2487 | -9/Materials | X0-1V1 announced a LAN party 2493 | -9/Materials | X0-1V1 mutated your Weapon slot to Power slot 2507 | -9/Materials | X0-1V1 foreshadows a heat wave 2584 | -9/Materials | Discovered new exit (range 11) 2596 | -9/Materials | Entered another Materials area 2596 | -8/Materials | Evolved 2 slots: Utility x1, Weapon x1 2619 | -8/Materials | Discovered new exit (range 17) 2767 | -8/Materials | Melee accuracy permanently improved by X0-1V1 (+10%; -100 max core) 2930 | -8/Materials | Discovered new exit (range 9) 2962 | -8/Materials | Identified exit to Factory 2962 | -8/Materials | X0-1V1 revealed exit location to -7/Factory 3149 | -8/Materials | Discovered exit to Factory (range 12) 3158 | -8/Materials | Build established: Scavenger-Mutant 3177 | -8/Materials | Entered Factory 3177 | -7/Factory | Evolved 2 slots: Propulsion x2 3177 | -7/Factory | Discovered new exit (range 8) 3290 | -7/Factory | X0-1V1 sent allied Knight (x1) 3382 | -7/Factory | Discovered new exit (range 16) 3525 | -7/Factory | X0-1V1 sent hostile S-27 Virus (x5) 3599 | -7/Factory | X0-1V1 added 0b10 threat records associated with you (major) 3717 | -7/Factory | X0-1V1 mutated your Utility slot to Propulsion slot 3873 | -7/Factory | X0-1V1 upgraded hostiles (x1) 3960 | -7/Factory | Core integrity fell below 50% 3967 | -7/Factory | X0-1V1 sent you into danger 4000 | -7/Factory | Lost 3 parts (2n1w) 4067 | -7/Factory | X0-1V1 upgraded hostiles (x1) 4070 | -7/Factory | System corruption reached 10% 4086 | -7/Factory | X0-1V1 sent hostile S-27 Virus (x5) 4092 | -7/Factory | Core integrity fell below 20% 4094 | -7/Factory | X0-1V1 rescued you from certain death 4123 | -7/Factory | Lost 8 parts (2p4n1u1w) 4150 | -7/Factory | Destroyed by P-80 Master with Gamma Rifle Last Messages --------------- 04125_ Imp. Hover Unit+ destroyed. 04128_ System corrupted: Mni. Grenade Launcher+ failed to launch. 04130_ ALERT: Potential suspicious activity detected, Programmers report to Factory Zone 1B. 04130_ S-27 Virus destroyed. 04130_ Destroyed VTOL Module. 04130_ S-27 Virus destroyed. 04130_ Destroyed VTOL Module. 04130_ Imp. Hover Unit+ destroyed. 04130_ X0-1V1 is interested. 04130_ Destroyed Imp. Hover Unit+. 04132_ System corrupted: Component data lost. 04132_ S-27 Virus destroyed. 04132_ Imp. Hover Unit+ destroyed. 04133_ Mni. Grenade Launcher+ destroyed. 04134_ Dropped Lrg. Storage Unit. 04136_ Acquired 3 matter. 04144_ Terminal disabled. 04147_ FY&<0C1MAJZSRZ C =>,RTJWQ5CJONMDDXNO2F7L 04150_ X0-1V1 snickers! Map ----- +----------------------------------------------------+ | ?????????????????????????????????????????????????? | | ?????????????????????????????????????????????????? | | ?????????????????????????????????????????????????? | | ?????????????????????????????????????????????????? | | ?????????????????????????????????????????????????? | | ?????????????????????????????????????????????????? | | ?????????????????????????????????????????????????? | | ?????????????????????????????????????????????????? | | ?????????????????????????????????????????????????? | | ?????????????????????????????????????????????????? | | ?????????????????????????????????????????# " # | | ?????????????????????????????????????????# " + | | ?????????????????????????????????????????# " # | | ?????????????????????????????????????????????????? | | ?????????????????????????????????????????????????? | | ?????????????????????????????????????????????????? | | ?????????????????????????????????????????????????? | | ?????????????????????????????????????????????????? | | ?????????????????????????????????????????????????? | | ??????????????###?????????????????########???????? | | ???? #########T ################## #???????? | | ??? # ! #???????? | | ??? # #???????? | | ?? # #???????? | | ?? !!= % s # " " ######### | | ?? /!= [ @p # " " # | | ?????????#########! ###k # " " # | | ??????????????##### ### # " " # | | ????????????? "" """ # # " " # | | ??????????????""""" """ """ # # " " # | | ?????????????"""""" # # " " # | | ??????????????""""" + + " " # | | ??????????????""""" # # " " # | | ???????????? # # # % | | ??????????? # ############/### | | ???########################## = | | ####[ [ % | | =%=%=%% = | | ####[ = !%* ! ! % | | # #########+#########+## ! | | # #?????? ????? ####+################# | | + #???? #?? """ # #[! #????# | | # #??# """ # """ # #[! ###### | | # #??# """ # """ # #!! #[% % | | # #??# """ #= # # %+= | | # #??# # """ # # # | | ####!! #??# """ # """ ]# # """ ### | | ####%! #??#???"" #????"" # # """ ##" | | #=! #???????" #????? # # """ ##T | | # #??????? #?????#### # ##" | +----------------------------------------------------+ Best States ------------- Heat Dissipation 56 Energy Generation 28 Energy Capacity 1120 Matter Stores 300 Matter Capacity 300 Sight Range 20 Terrain Scan Density 10 Evasion (%) 54 Targeting Accuracy 8 Recoil Reduction 2 Offensive Hacking 10 Item Schematics ----------------- None Robot Schematics ------------------ None Fabricated ------------ Nothing Repaired ---------- Nothing Studied --------- Com. Wheel | -9/Materials | Hacked Imp. Hover Unit | -9/Materials | Hacked Mni. Grenade Launcher | -9/Materials | Hacked Alien Tech Used ----------------- None Achievements -------------- None Challenges ------------ None Game ------ Seed HoverFactoryScrapsphere Manual? 0 Play Time 00:40:25 Cumulative 514.0 hours Start 2026.07.13 @ 15:17:21 End 2026.07.13 @ 16:01:24 Sessions 1 Manual Loads 0 Difficulty Rogue Special Mode None Game No. 221 Rogue 221 Adventurer 0 Explorer 0 Win Type - Total 29 Types 14/2/4/2/1/2/1/1/1/1 Lore% 89 Gallery% 80 Achievement% 75 Wizard Run 0 Options --------- Layout 0 ASCII 0 Keyboard 1 Movement Arrows Keybinds 0 Fullscreen 2 Font 18/Terminus Map View 76x50 Zoom Use 0% Tactical HUD 1 Map Filters BRIGHTNESS(90)|SATURATION(90) Filters NONE Steam 1 RUN: ed87079b-9b77-44b1-90e9-3083fd8d1cf2